Cogmind - Beta 13 @@@ ROGUE MODE // 2024.05.16 @ 12:06:40 Player: Puck Result: Self-destructed Performance ------------- Evolutions (1) 500 Regions Visited (3) 600 Robots Destroyed (53) 265 Value Destroyed (1235) 1235 Prototype IDs (2) 40 Alien Tech Used (0) 0 Bonus (0) 0 TOTAL SCORE: 2640 Bonus ------- None Cogmind --------- Core Integrity 170/400 Matter 237/300 Energy 265/265 System Corruption 1% Temperature Cool (0) Movement Treading (240) Ox1 Location -9/Storage Parts ------- > --- POWER (1) -------- Improved Ion Engine > --- PROPULSION (2) --- Light Treads Light Treads > --- UTILITY (3) ------ Disposable Heat Sink High-capacity Storage Unit Light Armor Plating > --- WEAPON (3) ------- Advanced Beam Cannon Advanced Beam Cannon Improved Light Cannon > --- INVENTORY (20) --- Improved Ion Engine Light Treads Light Treads Light Treads Light Treads Light Treads Heat Sink High-capacity Matter Pod (136) Improved Targeting Computer Hardlight Generator Hardlight Generator High-powered Tractor Beam Spread Laser Spread Laser Spread Laser Advanced Beam Cannon Advanced Beam Cannon Shotgun Mini Grenade Launcher Flail Peak State ------------ > --- POWER ------------ Improved Ion Engine > --- PROPULSION ------- Light Treads Light Treads > --- UTILITY ---------- Disposable Heat Sink High-capacity Storage Unit Light Armor Plating > --- WEAPON ----------- Advanced Beam Cannon Advanced Beam Cannon Improved Light Cannon > --- INVENTORY -------- Improved Ion Engine Light Treads Light Treads Light Treads Light Treads Light Treads Heat Sink High-capacity Matter Pod Improved Targeting Computer Hardlight Generator Hardlight Generator High-powered Tractor Beam Spread Laser Spread Laser Spread Laser Beam Cannon Beam Cannon Shotgun Mini Grenade Launcher Flail [Rating: 19] Favorites ----------- Power Ion Engine Engine Ion Engine Propulsion Light Treads Treads Light Treads Utility Light Armor Plating Device Heat Sink Storage High-capacity Storage Unit Processor Visual Processing Unit Protection Light Armor Plating Weapon Beam Cannon Energy Gun Improved EM Shotgun Energy Cannon Beam Cannon Ballistic Gun Light Assault Rifle Ballistic Cannon Light Cannon Build | -11 -10 -9 -9 ------- Run | Yrd Mat Mat Sto Slots Evolved 2 | . . 2 . Power . | . . . . Propulsion . | . . . . Utility 1 | . . 1 . Weapon 1 | . . 1 . Parts Attached 42 | 6 12 16 8 Power 4 | 1 1 2 . Engine 4 | 1 1 2 . Core . | . . . . Reactor . | . . . . Propulsion 8 | 2 . 4 2 Treads 8 | 2 . 4 2 Leg . | . . . . Wheel . | . . . . Hover . | . . . . Flight . | . . . . Utility 14 | 1 6 6 1 Device 4 | . 1 2 1 Storage 5 | 1 3 1 . Processor 1 | . 1 . . Hackware . | . . . . Protection 4 | . 1 3 . Artifact . | . . . . Weapon 16 | 2 5 4 5 Energy Gun 1 | . . . 1 Energy Cannon 8 | . 2 3 3 Ballistic Gun 4 | 2 2 . . Ballistic Cannon 3 | . 1 1 1 Launcher . | . . . . Special Weapon . | . . . . Impact Weapon . | . . . . Slashing Weapon . | . . . . Piercing Weapon . | . . . . Special Melee Weapon . | . . . . Unidentified Prototypes 2 | . . . 2 Parts Lost 3 | . . 3 . Power 1 | . . 1 . Propulsion 1 | . . 1 . Utility 1 | . . 1 . Weapon . | . . . . Highest Loss Streak 2 | . . 2 . To Critical Strikes . | . . . . Average Slot Usage (%) 99 | . 99 99 99 Engine 12 | . 14 10 11 Treads 24 | . 28 21 22 Device 8 | . 5 11 11 Storage 12 | . 14 11 11 Processor 1 | . 2 . . Protection 8 | . 5 10 11 Energy Cannon 15 | . 8 22 21 Ballistic Gun 7 | . 17 . . Ballistic Cannon 7 | . 2 11 11 Naked Turns . | . . . . Heaviest Build 63 | 10 50 61 63 Greatest Support 40 | 40 40 40 40 Greatest Overweight (x) 3 | 3 1 2 1 Average Overweight (x) . | . . . 1 Largest Inventory Capacity 20 | 8 20 20 20 Average Capacity 15 | 7 10 18 20 Most Carried 20 | 2 12 20 20 Average Carried 13 | . 8 17 19 Final Capacity 20 | 8 15 20 20 Final Carried 20 | 2 12 20 20 Class Distribution -------------------- 44% | Mutant 42% | Tank 11% | Scavenger-Tank Dominant Class ---------------- Mutant | -10/Materials Tank | -9/Materials Tank | -9/Storage Resources | -11 -10 -9 -9 ----------- Run | Yrd Mat Mat Sto Matter Collected 1136 | 229 223 614 70 Remotely . | . . . . Salvage Created 1881 | . 610 1049 222 Parts 115 | . 32 66 17 Haulers Intercepted 5 | . 1 4 . Recyclers Shooed 4 | . 3 1 . Parts Field Recycled . | . . . . Retrieved Matter . | . . . . Parts Self-Destructed . | . . . . Prevented . | . . . . Kills | -11 -10 -9 -9 ------- Run | Yrd Mat Mat Sto Combat Hostiles Destroyed 32 | . 10 18 4 Guns 10 | . 10 . . Cannons 21 | . . 17 4 Classes Destroyed 10 | . 7 3 . Builder 2 | . 1 1 . Tunneler 1 | . . 1 . Hauler 5 | . 1 4 . Recycler 5 | . 2 3 . Operator 2 | . 1 1 . Watcher 6 | . 3 2 1 Swarmer 11 | . 5 6 . Grunt 13 | . 5 6 2 Brawler 2 | . . 1 1 Sentry 6 | . . 5 1 Best Kill Streak 6 | . 4 6 3 Combat Bots Only 3 | . 3 3 3 Max Kills in Single Turn 3 | . 1 3 1 Gunslinging . | . . . . Exploded . | . . . . Melee . | . . . . Uniques/NPCs Destroyed . | . . . . Combat | -11 -10 -9 -9 -------- Run | Yrd Mat Mat Sto Hostile Shots Fired 153 | . 44 105 4 Missed 32 | . 7 25 . Damage Taken 1390 | . 383 945 62 Core 276 | . 46 215 15 Absorbed by Shields . | . . . . Core Remaining (%) 90 | 100 81 . . Volleys Fired 120 | . 54 58 8 Largest 3 | . 2 3 3 Hottest 175 | . 120 159 175 Shots Fired 283 | . 108 152 23 Gun 84 | . 84 . . Cannon 199 | . 24 152 23 Launcher . | . . . . Special . | . . . . Kinetic 151 | . 86 58 7 Thermal 132 | . 22 94 16 Explosive . | . . . . Electromagnetic . | . . . . Robot Hit Streak 14 | . 14 10 12 Robot Miss Streak 4 | . 4 4 1 Penetration Max . | . . . . Secondary Targets . | . . . . Shots Hit Robots 158 | . 67 79 12 Core Hits 72 | . 32 33 7 Critical Kills 2 | . . 2 . Critical Parts Destroyed 1 | . 1 . . Critical Strikes 4 | . 1 3 . Meltdown 2 | . . 2 . Destroy 1 | . 1 . . Blast 1 | . . 1 . Melee Attacks . | . . . . Impact . | . . . . Slashing . | . . . . Piercing . | . . . . Sneak Attacks . | . . . . Combat Hostiles . | . . . . Follow-up Attacks . | . . . . Damage Inflicted 2522 | . 664 1616 242 Guns 465 | . 465 . . Cannons 2054 | . 196 1616 242 Explosions . | . . . . Melee . | . . . . Ramming 3 | . 3 . . Kinetic 1089 | . 484 544 61 Thermal 1430 | . 177 1072 181 Explosive . | . . . . Electromagnetic . | . . . . Impact . | . . . . Slashing . | . . . . Piercing . | . . . . Highest Corruption 2 | . 2 1 1 Average Corruption 1 | . 2 1 1 Corruption Purged . | . . . . Corruption Blocked . | . . . . Effects 6 | . 1 1 4 Message Errors 4 | . 1 1 2 Matter Fused 1 | . . . 1 Energy Discharges 1 | . . . 1 Overload Shots . | . . . . Overflow Damage 10 | . . 6 4 Projectiles 10 | . . 6 4 Explosions . | . . . . Melee . | . . . . Knockbacks 5 | . . 5 . Impact . | . . . . Kinetic 5 | . . 5 . Secondary . | . . . . Self-Inflicted Damage . | . . . . Shots . | . . . . Rammed 1 | . 1 . . Targets Rammed 1 | . 1 . . Kicked . | . . . . Crushed . | . . . . Highest Temperature 411 | . 90 411 259 Average Temperature 91 | . 15 129 90 Received Heat Transfer 528 | . 135 375 18 Effects 3 | . . 3 . Shutdowns 2 | . . 2 . Damage (minor) 1 | . . 1 . Siege Activations . | . . . . Robots Corrupted . | . . . . Combat Hostiles . | . . . . Parts Fried . | . . . . Impact Corruptions . | . . . . Robots Melted 2 | . . 2 . Combat Hostiles 1 | . . 1 . Parts Melted 7 | . 1 6 . Heat Transferred 2960 | . 370 2220 370 Parts Sabotaged . | . . . . Parts Stolen . | . . . . Parts Stripped . | . . . . Power Chain Reactions . | . . . . Alert | -11 -10 -9 -9 ------- Run | Yrd Mat Mat Sto Peak Influence 468 | . 188 329 468 Initial 136 | . . 16 136 Average 153 | . 75 206 261 Maximum Alert Level 2 | . . 1 2 Low Security (%) 67 | 100 100 45 29 Level 1 31 | . . 54 64 Level 2 . | . . . 6 Level 3 . | . . . . Level 4 . | . . . . Level 5 . | . . . . High Security . | . . . . Max Security . | . . . . Squads Dispatched 4 | . 2 1 1 Investigation 1 | . 1 . . Extermination . | . . . . Reinforcement 2 | . 1 1 . Assault 1 | . . . 1 Garrison . | . . . . Intercept . | . . . . Searches Triggered . | . . . . Construction Impeded . | . . . . Haulers Reinforced . | . . . . Active Scanning Responses . | . . . . Cargo Convoy Interrupts . | . . . . Stealth | -11 -10 -9 -9 --------- Run | Yrd Mat Mat Sto Distress Signals 1 | . . 1 . Communications Jammed . | . . . . Distress Signals . | . . . . Times Spotted 49 | . 19 24 6 Peak Tracking Total 5 | . 3 5 3 Tactical Retreats 3 | . 2 1 . Traps | -11 -10 -9 -9 ------- Run | Yrd Mat Mat Sto Traps Triggered 4 | . 3 1 . Indirectly . | . . . . Trap Hack Attempts . | . . . . Triggered . | . . . . Disarmed . | . . . . Reprogrammed . | . . . . Reused . | . . . . Traps Extracted . | . . . . Installed . | . . . . Triggered . | . . . . Machines | -11 -10 -9 -9 ---------- Run | Yrd Mat Mat Sto Machines Disabled 5 | . . 3 2 Max in Single Turn 1 | . . 1 1 Garrison Access 1 | . . . 1 Machines Repaired . | . . . . Machines Dismantled . | . . . . Machines Sabotaged . | . . . . Overloaded Fab Kills . | . . . . Hacking | -11 -10 -9 -9 --------- Run | Yrd Mat Mat Sto Machines Accessed 13 | . 6 2 5 Terminals 10 | . 5 1 4 Fabricators . | . . . . Repair Stations . | . . . . Recycling Units 2 | . 1 1 . Scanalyzers . | . . . . Garrison Access 1 | . . . 1 Total Hacks 31 | . 17 3 11 Successful 14 | . 9 . 5 Failed 16 | . 7 3 6 Catastrophic 5 | . 1 1 3 Database Lockouts 1 | . 1 . . Manual 11 | . 8 2 1 Terminals 23 | . 12 2 9 Fabricators . | . . . . Repair Stations . | . . . . Recycling Units 6 | . 5 1 . Scanalyzers . | . . . . Garrison Access 2 | . . . 2 Terminal Hacks 11 | . 6 . 5 Part Schematic 1 | . . . 1 Robot Analysis 3 | . 2 . 1 Open Door 2 | . . . 2 Branch Access Points 1 | . 1 . . Alert Level 1 | . 1 . . Locate Traps 2 | . 2 . . Recall Reinforcements 1 | . . . 1 Fabricator Hacks . | . . . . Repair Station Hacks . | . . . . Recycling Unit Hacks 1 | . 1 . . Retrieve Components 1 | . 1 . . Scanalyzer . | . . . . Garrison Access Hacks . | . . . . Unauthorized Hacks 2 | . 2 . . Terminals . | . . . . Fabricators . | . . . . Repair Stations . | . . . . Recycling Units 2 | . 2 . . Reject 1 | . 1 . . Mask 1 | . 1 . . Scanalyzers . | . . . . Garrison Access . | . . . . Data Cores Recovered 1 | . . 1 . Used . | . . . . Hacking Detections 8 | . 2 2 4 Full Trace Events 2 | . . . 2 Feedback Events . | . . . . Feedback Blocked . | . . . . Robot Schematics Acquired . | . . . . Robots Built . | . . . . Authchips . | . . . . Time . | . . . . Total Robot Build Rating . | . . . . Part Schematics Acquired 1 | . . . 1 Parts Built . | . . . . Authchips . | . . . . Time . | . . . . Total Part Build Rating . | . . . . Parts Repaired . | . . . . Time . | . . . . Parts Recycled . | . . . . Recycled Matter . | . . . . Retrieved Matter . | . . . . Retrieved Components 9 | . 9 . . Parts Scanalyzed . | . . . . Part Schematics Acquired . | . . . . Parts Damaged . | . . . . Bothacking | -11 -10 -9 -9 ------------ Run | Yrd Mat Mat Sto Used RIF Installer . | . . . . Robots Hacked . | . . . . Non-combat . | . . . . Combat . | . . . . Robot Hacks Applied . | . . . . Relay Couplers Released 2 | . . . 2 Machine Destruction 2 | . . . 2 Fabnet Peak Effective % . | . . . . Robots Rewired . | . . . . Allies Hacked . | . . . . Hacks Repelled . | . . . . Allies | -11 -10 -9 -9 -------- Run | Yrd Mat Mat Sto Total Allies . | . . . . Largest Group . | . . . . Highest-Rated Group . | . . . . Highest-Rated Ally . | . . . . Total Orders . | . . . . Ally Attacks . | . . . . Total Damage . | . . . . Kills . | . . . . Allies Corrupted . | . . . . Allies Melted . | . . . . Intel | -11 -10 -9 -9 ------- Run | Yrd Mat Mat Sto Robot Analysis Total 3 | . 2 . 1 Derelict Logs Recovered . | . . . . Drone Launches . | . . . . Drone Recoveries . | . . . . Exploration | -11 -10 -9 -9 ------------- Run | Yrd Mat Mat Sto Turns Passed 2702 | 78 1121 1144 359 Spaces Moved 1181 | 43 573 436 129 Core 10 | 10 . . . Treads 1171 | 33 573 436 129 Legs . | . . . . Wheels . | . . . . Hover . | . . . . Flight . | . . . . Fastest Speed 50 | 50 160 160 240 Average Speed 187 | 157 161 209 240 Slowest Speed 320 | 200 240 320 240 Overloaded Moves . | . . . . Propulsion Burnouts . | . . . . Robots Hopped . | . . . . Cave-ins Triggered . | . . . . Exploration Rate (%) 43 | 3 97 44 29 Regions Visited 3 Branch Regions 1 Pre-discovered Areas . | . . . . Known Exits Taken . | . . . . Unknown Exits Taken 3 | 1 1 1 . Scrap Searched . | . . . . Spaces Dug . | . . . . Terrain Destroyed 1 | . . . 1 Melee . | . . . . Projectile 1 | . . . 1 AOE . | . . . . Terrain Rammed . | . . . . Walls Destroyed . | . . . . Machines Disabled . | . . . . Actions | -11 -10 -9 -9 --------- Run | Yrd Mat Mat Sto Total 1443 | 50 675 555 163 Wait 37 | . 14 16 7 Move 1178 | 42 572 435 129 Hop . | . . . . Pick Up 33 | 2 13 16 2 Fast Attach 15 | 6 5 1 3 Attach 4 | . . 4 . Detach . | . . . . Swap 23 | . 7 11 5 Drop 32 | . 9 14 9 Fire 120 | . 54 58 8 Melee . | . . . . Ram . | . . . . Kick . | . . . . Crush 1 | . 1 . . Escape Stasis . | . . . . Rewire . | . . . . Trap . | . . . . Miscellaneous . | . . . . Route ------- -11/Scrapyard -10/Materials (discovered 5 exits: *Mat x3 / *Min x2) -9/Materials (discovered 3 exits: [*Mat] / [*Min] / *Sto) -9/Storage History --------- Turn | Location | Event 30 | -11/Scrapyard | Discovered new exit (range 14) 79 | -11/Scrapyard | Entered Materials 282 | -10/Materials | Discovered new exit (range 17) 314 | -10/Materials | Build established: Mutant 591 | -10/Materials | Central database locked down 596 | -10/Materials | Discovered new exit (range 10) 679 | -10/Materials | Identified exit to Mines 971 | -10/Materials | Discovered new exit (range 11) 1200 | -10/Materials | Entered another Materials area 1200 | -9/Materials | Evolved 2 slots: Utility x1, Weapon x1 1514 | -9/Materials | Build established: Tank 1521 | -9/Materials | Discovered new exit (range 12) 2061 | -9/Materials | Discovered new exit (range 11) 2088 | -9/Materials | Core integrity fell below 50% 2119 | -9/Materials | Discovered new exit (range 16) 2344 | -9/Materials | Entered Storage 2703 | -9/Storage | Self-destructed Last Messages --------------- 02553_ Dropped Adv. Beam Cannon. 02553_ Acquired Prototype Energy Gun. 02553_ Identified Imp. EM Shotgun. 02555_ Dropped Imp. EM Shotgun. 02560_ Acquired Adv. Beam Cannon. 02565_ Z>EZN,8BBSD,TI&ZK&TOQ 02593_ |V&P7WFQ6AIMSH38DUQ/Z 02629_ Dropped Imp. Light Cannon. 02644_ K-01 Serf cleans the Packing Station. 02647_ W-16 Scout destroyed. 02647_ Packing Station disabled. 02648_ K-01 Serf collects debris. 02654_ U-05 Engineer builds a Wall. 02655_ Acquired 24 matter. 02656_ K-01 Serf collects debris. 02681_ Connecting with Garrison Access... 02681_ ALERT: Garrison Access compromised, dispatching assault squad. 02681_ Garrison Access disabled. 02681_ Relay Coupler [Duelist] tumbles out of Garrison Access. 02681_ Relay Coupler [Hunter] tumbles out of Garrison Access. Map ----- +----------------------------------------------------+ | ????????????????????????#T #??# ####??????? | | ????????????????????????## #??# ##T######?? | | ?????????????####+#########/##### # ====#?? | | ???????????? %% + #?? | | ???????????? # ==#?? | | ???????????? % %[ = #########?? | | ?????????????####+#########/##### #?????????? | | ???????????????????????# !=**# #?????????? | | ???????????????????????# """ =**# #?????????? | | ???????????????????????# "R" =* # #?????????? | | ??????????????????????## " " # #?????????? | | ??????????????????????# # #?????????? | | ??????????????????? ?## """ !# #?????????? | | ?????????????????? ??# """ # #?????????? | | ??????????????????? ??# """ # #?????????? | | ??????????????????? ??# ] + #?????????? | | ???????????????????#/??###+#######+##?????????? | | ???????????????????# #???# #??????????????????? | | ??????????????#????# ##### ##?????????????????? | | ?????????????## #### #?????????????????? | | ?????????????+ u #?????????????????? | | ?????????????# = ! #?????????????????? | | ?????????????# """ ! #?????????????????? | | ?????????????# """ ""#?????????????????? | | ?????????????# """" ""#?????????????????? | | ?????????????# """" @T"#?????????????????? | | ??????????#### """ ""#?????????????????? | | ??????????# "" ""####??????????????? | | ??????????# #?????????????? | | ??????????# ! a #?????????????? | | ??????????# # !"#######+### #?????????????? | | ??????????## #"G"#?????? #?? #?????????????? | | ???????????? ??#"""#?????? #??? #?????????????? | | ???????????????#####?????? #??????????????????? | | ??????????????????????????##??????????????????? | | ??????????????????????????????????????????????? | | ??????????????????????????????????????????????? | | ??????????????????????????????????????????????? | | ??????????????????????????????????????????????? | | ??????????????????????????????????????????????? | | ??????????????????????????????????????????????? | | ??????????????????????????????????????????????? | | ??????????????????????????????????????????????? | | ??????????????????????????????????????????????? | | ??????????????????????????????????????????????? | | ??????????????????????????????????????????????? | | ??????????????????????????????????????????????? | | ??????????????????????????????????????????????? | | ??????????????????????????????????????????????? | | ??????????????????????????????????????????????? | +----------------------------------------------------+ Best States ------------- Heat Dissipation 38 Coolant Potential 50 Energy Generation 12 Energy Capacity 265 Matter Stores 300 Matter Capacity 300 Sight Range 18 Terrain Scan Density 10 Armor Coverage 150 Evasion (%) 40 Recoil Reduction 2 Item Schematics ----------------- Hrd. Heavy Armor Plating | -9/Storage | Hacked Robot Schematics ------------------ None Fabricated ------------ Nothing Alien Tech Used ----------------- None Achievements -------------- None Challenges ------------ None Game ------ Seed AccelerationBehemothPendant Manual? 0 Play Time 00:23:11 Cumulative 268.9 hours Start 2024.03.18 @ 10:50:25 End 2024.05.16 @ 12:06:40 Sessions 5 Manual Loads 0 Difficulty Rogue Special Mode None Game No. 122 Rogue 82 Adventurer 29 Explorer 11 Win Type - Total 12 Types 7/0/1/2/0/0/1/0/1 Lore% 61 Gallery% 78 Achievement% 77 Wizard Run 0 Options --------- Layout 0 ASCII 0 Keyboard 0 Movement Numpad Keybinds 0 Fullscreen 2 Font 24/Smallcaps Map View 76x50 Zoom Use 0% Tactical HUD 1 Map Filters NONE Filters LOW_CONTRAST(13,24,33) Steam 1 RUN: 76c1278d-6dee-4133-b12c-307ce5312417